[Event "*** Titled Tuesday Blitz"]
[Site "Chess.com"]
[Date "2020.11.03"]
[Round "11"]
[White "Harsha_Bharathakoti"]
[Black "dropstoneDP"]
[Result "1/2-1/2"]
[WhiteElo "2824"]
[BlackElo "2913"]
[TimeControl "180+1"]
[EndTime "12:12:21 PST"]
[Termination "Game drawn by stalemate"]

1. d4 {[%clk 0:03:00.1]} 1... Nf6 {[%clk 0:02:58.7]} 2. c4 {[%clk 0:02:59.4]}
2... e6 {[%clk 0:02:58.6]} 3. Nc3 {[%clk 0:02:58.1]} 3... Bb4 {[%clk 0:02:58.9]}
4. e3 {[%clk 0:02:58.3]} 4... O-O {[%clk 0:02:59.1]} 5. Bd3 {[%clk 0:02:57.9]}
5... d5 {[%clk 0:02:59.7]} 6. a3 {[%clk 0:02:57.5]} 6... Bxc3+ {[%clk 0:02:59]}
7. bxc3 {[%clk 0:02:58.4]} 7... c5 {[%clk 0:02:56.4]} 8. Ne2 {[%clk 0:02:58.6]}
8... dxc4 {[%clk 0:02:55.8]} 9. Bxc4 {[%clk 0:02:59.5]} 9... b6 {[%clk
0:02:56.7]} 10. O-O {[%clk 0:02:59.7]} 10... Ba6 {[%clk 0:02:54.1]} 11. Ba2
{[%clk 0:02:55.6]} 11... Nc6 {[%clk 0:02:52.8]} 12. f3 {[%clk 0:02:11.8]} 12...
Nd5 {[%clk 0:02:52.6]} 13. Bd2 {[%clk 0:02:07.2]} 13... Qg5 {[%clk 0:02:50.3]}
14. Rf2 {[%clk 0:01:46.4]} 14... cxd4 {[%clk 0:01:26.8]} 15. cxd4 {[%clk
0:01:38.7]} 15... Rac8 {[%clk 0:01:04.7]} 16. Ng3 {[%clk 0:01:20.7]} 16... Na5
{[%clk 0:00:37.7]} 17. Qe1 {[%clk 0:00:52.9]} 17... Qh4 {[%clk 0:00:21.5]} 18.
Bxa5 {[%clk 0:00:43.8]} 18... bxa5 {[%clk 0:00:20.7]} 19. Bxd5 {[%clk
0:00:44.4]} 19... exd5 {[%clk 0:00:20.2]} 20. Qxa5 {[%clk 0:00:45]} 20... Bc4
{[%clk 0:00:18.6]} 21. Qxa7 {[%clk 0:00:35.8]} 21... Rfe8 {[%clk 0:00:18.9]} 22.
Re1 {[%clk 0:00:28.9]} 22... Ra8 {[%clk 0:00:17.7]} 23. Qc5 {[%clk 0:00:27.9]}
23... Rec8 {[%clk 0:00:16.2]} 24. Qd6 {[%clk 0:00:25.6]} 24... Rd8 {[%clk
0:00:14.8]} 25. Qf4 {[%clk 0:00:19.9]} 25... Qxf4 {[%clk 0:00:13.5]} 26. exf4
{[%clk 0:00:20.8]} 26... Rxa3 {[%clk 0:00:14.1]} 27. Rd2 {[%clk 0:00:18.5]}
27... g6 {[%clk 0:00:12]} 28. f5 {[%clk 0:00:18.8]} 28... Kg7 {[%clk 0:00:11.9]}
29. fxg6 {[%clk 0:00:19.2]} 29... hxg6 {[%clk 0:00:12.6]} 30. Kf2 {[%clk
0:00:18.8]} 30... Rb8 {[%clk 0:00:10.1]} 31. Nf1 {[%clk 0:00:15.9]} 31... Bxf1
{[%clk 0:00:09.5]} 32. Rxf1 {[%clk 0:00:16.1]} 32... Rb4 {[%clk 0:00:09.9]} 33.
Rc1 {[%clk 0:00:14]} 33... Raa4 {[%clk 0:00:10.1]} 34. Ke3 {[%clk 0:00:14]}
34... Ra3+ {[%clk 0:00:03.3]} 35. Ke2 {[%clk 0:00:12.5]} 35... Raa4 {[%clk
0:00:03.4]} 36. Rcd1 {[%clk 0:00:11.3]} 36... Kf6 {[%clk 0:00:03.5]} 37. Ke3
{[%clk 0:00:09.8]} 37... Kg5 {[%clk 0:00:03.9]} 38. g3 {[%clk 0:00:07.6]} 38...
Rb3+ {[%clk 0:00:03.7]} 39. Kf2 {[%clk 0:00:07.9]} 39... Raa3 {[%clk 0:00:02.9]}
40. f4+ {[%clk 0:00:05.3]} 40... Kf5 {[%clk 0:00:03.2]} 41. Re2 {[%clk
0:00:04.1]} 41... Kg4 {[%clk 0:00:02.6]} 42. Kg2 {[%clk 0:00:03.8]} 42... Re3
{[%clk 0:00:02.7]} 43. Rdd2 {[%clk 0:00:02.1]} 43... Kf5 {[%clk 0:00:02.2]} 44.
Rxe3 {[%clk 0:00:02.2]} 44... Rxe3 {[%clk 0:00:03.1]} 45. Kf2 {[%clk 0:00:02.8]}
45... Re4 {[%clk 0:00:02.5]} 46. Kf3 {[%clk 0:00:02.2]} 46... Re1 {[%clk
0:00:02.2]} 47. g4+ {[%clk 0:00:02.7]} 47... Kf6 {[%clk 0:00:02.4]} 48. Rc2
{[%clk 0:00:02.4]} 48... Re4 {[%clk 0:00:02.3]} 49. Rd2 {[%clk 0:00:01.8]} 49...
g5 {[%clk 0:00:02.9]} 50. fxg5+ {[%clk 0:00:01.5]} 50... Kxg5 {[%clk 0:00:03.8]}
51. h3 {[%clk 0:00:02.4]} 51... Kh4 {[%clk 0:00:04.7]} 52. Kg2 {[%clk
0:00:02.4]} 52... Re3 {[%clk 0:00:05]} 53. Rf2 {[%clk 0:00:03.3]} 53... Rg3+
{[%clk 0:00:05.3]} 54. Kf1 {[%clk 0:00:03.9]} 54... Rxh3 {[%clk 0:00:04.4]} 55.
Rxf7 {[%clk 0:00:04.5]} 55... Kxg4 {[%clk 0:00:03.3]} 56. Rd7 {[%clk 0:00:05.2]}
56... Kf3 {[%clk 0:00:03.9]} 57. Ke1 {[%clk 0:00:03]} 57... Ke3 {[%clk
0:00:04.5]} 58. Re7+ {[%clk 0:00:02]} 58... Kd3 {[%clk 0:00:03.3]} 59. Ra7
{[%clk 0:00:01.9]} 59... Rh1+ {[%clk 0:00:02.3]} 60. Kf2 {[%clk 0:00:02.6]}
60... Kxd4 {[%clk 0:00:02.9]} 61. Ke2 {[%clk 0:00:03.2]} 61... Kc3 {[%clk
0:00:02.4]} 62. Rc7+ {[%clk 0:00:03.4]} 62... Kb3 {[%clk 0:00:02.7]} 63. Rb7+
{[%clk 0:00:03.3]} 63... Kc4 {[%clk 0:00:02.9]} 64. Rc7+ {[%clk 0:00:03.9]}
64... Kd4 {[%clk 0:00:03.5]} 65. Ra7 {[%clk 0:00:04.6]} 65... Rh2+ {[%clk
0:00:02.7]} 66. Kd1 {[%clk 0:00:05]} 66... Ke3 {[%clk 0:00:02.4]} 67. Ra3+
{[%clk 0:00:05.2]} 67... Ke4 {[%clk 0:00:03]} 68. Rb3 {[%clk 0:00:05.7]} 68...
Rf2 {[%clk 0:00:02.9]} 69. Ke1 {[%clk 0:00:05.9]} 69... Rf3 {[%clk 0:00:03.4]}
70. Rxf3 {[%clk 0:00:06]} 70... Kxf3 {[%clk 0:00:03.5]} 71. Kd2 {[%clk
0:00:06.9]} 71... Ke4 {[%clk 0:00:03.5]} 72. Ke2 {[%clk 0:00:07.5]} 72... Kd4
{[%clk 0:00:03.2]} 73. Kd2 {[%clk 0:00:08.2]} 73... Kc4 {[%clk 0:00:04.1]} 74.
Kc2 {[%clk 0:00:08.6]} 74... d4 {[%clk 0:00:04.5]} 75. Kd2 {[%clk 0:00:09.1]}
75... d3 {[%clk 0:00:05.4]} 76. Kd1 {[%clk 0:00:09.7]} 76... Kc3 {[%clk
0:00:06.3]} 77. Kc1 {[%clk 0:00:10.2]} 77... d2+ {[%clk 0:00:07.2]} 78. Kd1
{[%clk 0:00:10.6]} 78... Kd3 {[%clk 0:00:08.1]} 1/2-1/2

[Event "*** Titled Tuesday Blitz"]
[Site "Chess.com"]
[Date "2020.11.03"]
[Round "11"]
[White "Jungle_Jaguar"]
[Black "tptagain"]
[Result "1-0"]
[WhiteElo "2645"]
[BlackElo "2912"]
[TimeControl "180+1"]
[EndTime "12:12:22 PST"]
[Termination "Jungle_Jaguar won on time"]

1. e4 {[%clk 0:03:00.9]} 1... e5 {[%clk 0:02:59.4]} 2. Nf3 {[%clk 0:03:01.2]}
2... Nc6 {[%clk 0:02:59.8]} 3. Bb5 {[%clk 0:03:01.7]} 3... a6 {[%clk 0:03:00]}
4. Ba4 {[%clk 0:03:02.1]} 4... d6 {[%clk 0:03:00.5]} 5. O-O {[%clk 0:02:59.8]}
5... Bd7 {[%clk 0:03:00.1]} 6. d4 {[%clk 0:02:59.9]} 6... b5 {[%clk 0:02:58.9]}
7. Bb3 {[%clk 0:02:58.1]} 7... Nxd4 {[%clk 0:02:55.9]} 8. Nxd4 {[%clk
0:02:51.6]} 8... exd4 {[%clk 0:02:56.8]} 9. Qh5 {[%clk 0:02:19.3]} 9... Qe7
{[%clk 0:02:24.6]} 10. c3 {[%clk 0:01:50.3]} 10... Nf6 {[%clk 0:02:21.1]} 11.
Qh4 {[%clk 0:01:49.2]} 11... Nxe4 {[%clk 0:02:12.8]} 12. Qxe7+ {[%clk
0:01:47.1]} 12... Bxe7 {[%clk 0:02:08.8]} 13. Bd5 {[%clk 0:01:47.6]} 13... O-O-O
{[%clk 0:01:52.6]} 14. Bxe4 {[%clk 0:01:46.3]} 14... Bf6 {[%clk 0:01:52.4]} 15.
a4 {[%clk 0:01:36.4]} 15... Rhe8 {[%clk 0:01:51.2]} 16. Bf3 {[%clk 0:01:19.1]}
16... bxa4 {[%clk 0:01:36.3]} 17. cxd4 {[%clk 0:01:19.1]} 17... Bxd4 {[%clk
0:01:34.5]} 18. Nc3 {[%clk 0:01:19.6]} 18... Re5 {[%clk 0:01:18.3]} 19. Bd2
{[%clk 0:01:11.4]} 19... g5 {[%clk 0:01:05.5]} 20. Nxa4 {[%clk 0:01:01.5]} 20...
g4 {[%clk 0:01:05.4]} 21. Bd1 {[%clk 0:01:02.1]} 21... Bb5 {[%clk 0:00:46]} 22.
Bxg4+ {[%clk 0:01:02.3]} 22... f5 {[%clk 0:00:45.7]} 23. Bf3 {[%clk 0:00:52.2]}
23... Bxf1 {[%clk 0:00:45.8]} 24. Kxf1 {[%clk 0:00:53.1]} 24... Rde8 {[%clk
0:00:45]} 25. Nc3 {[%clk 0:00:50.4]} 25... a5 {[%clk 0:00:41.2]} 26. g3 {[%clk
0:00:47]} 26... Kd7 {[%clk 0:00:37.9]} 27. Ra4 {[%clk 0:00:43.6]} 27... Bb6
{[%clk 0:00:26.2]} 28. Nd5 {[%clk 0:00:44]} 28... Rb8 {[%clk 0:00:25.3]} 29. Bc3
{[%clk 0:00:41.9]} 29... Re6 {[%clk 0:00:25.6]} 30. Rh4 {[%clk 0:00:41.8]} 30...
h6 {[%clk 0:00:24]} 31. Nf6+ {[%clk 0:00:39.7]} 31... Ke7 {[%clk 0:00:23.2]} 32.
Rxh6 {[%clk 0:00:39.8]} 32... a4 {[%clk 0:00:19.7]} 33. Bd5 {[%clk 0:00:38.1]}
33... Re5 {[%clk 0:00:17.8]} 34. Bxe5 {[%clk 0:00:35.2]} 34... dxe5 {[%clk
0:00:18.7]} 35. Bc6 {[%clk 0:00:31.1]} 35... Bd4 {[%clk 0:00:18.4]} 36. Nd5+
{[%clk 0:00:30.9]} 36... Kf7 {[%clk 0:00:18.3]} 37. Bxa4 {[%clk 0:00:22.7]}
37... Kg7 {[%clk 0:00:17.5]} 38. Rc6 {[%clk 0:00:19.4]} 38... Rxb2 {[%clk
0:00:17]} 39. Rxc7+ {[%clk 0:00:19.9]} 39... Kg6 {[%clk 0:00:17]} 40. Rc2 {[%clk
0:00:20.6]} 40... Rb1+ {[%clk 0:00:17.7]} 41. Kg2 {[%clk 0:00:20.3]} 41... Kg5
{[%clk 0:00:18.3]} 42. h4+ {[%clk 0:00:19.6]} 42... Kg6 {[%clk 0:00:19]} 43.
Be8+ {[%clk 0:00:19.1]} 43... Kg7 {[%clk 0:00:19.2]} 44. Bd7 {[%clk 0:00:19.3]}
44... Kg6 {[%clk 0:00:18.5]} 45. Ne3 {[%clk 0:00:19.8]} 45... f4 {[%clk
0:00:18.7]} 46. gxf4 {[%clk 0:00:20.5]} 46... exf4 {[%clk 0:00:19.6]} 47. Nd5
{[%clk 0:00:21.2]} 47... Kh5 {[%clk 0:00:18.4]} 48. Nxf4+ {[%clk 0:00:21.2]}
48... Kxh4 {[%clk 0:00:18.3]} 49. Rc4 {[%clk 0:00:21.7]} 49... Bf6 {[%clk
0:00:16.9]} 50. Nd5+ {[%clk 0:00:21.7]} 50... Kg5 {[%clk 0:00:17.5]} 51. Rg4+
{[%clk 0:00:21.3]} 51... Kh6 {[%clk 0:00:17.3]} 52. Nxf6 {[%clk 0:00:22]} 52...
Rg1+ {[%clk 0:00:17.5]} 53. Kf3 {[%clk 0:00:11.8]} 53... Rg3+ {[%clk 0:00:18.1]}
54. Ke4 {[%clk 0:00:04.3]} 54... Re3+ {[%clk 0:00:17.8]} 55. Kd5 {[%clk
0:00:04.7]} 55... Re5+ {[%clk 0:00:16.5]} 56. Kd4 {[%clk 0:00:05]} 56... Rf5
{[%clk 0:00:08.9]} 57. Ne4 {[%clk 0:00:04.3]} 57... Ra5 {[%clk 0:00:07.1]} 58.
Rh4+ {[%clk 0:00:04.6]} 58... Kg6 {[%clk 0:00:07.3]} 59. Rg4+ {[%clk 0:00:05.2]}
59... Kh6 {[%clk 0:00:07.7]} 60. Rg3 {[%clk 0:00:06.1]} 60... Ra1 {[%clk
0:00:07.3]} 61. Ke3 {[%clk 0:00:06.4]} 61... Rd1 {[%clk 0:00:07.6]} 62. Bf5
{[%clk 0:00:06]} 62... Ra1 {[%clk 0:00:07.7]} 63. Kf4 {[%clk 0:00:06.5]} 63...
Ra5 {[%clk 0:00:07.5]} 64. Rh3+ {[%clk 0:00:06.9]} 64... Kg7 {[%clk 0:00:07.8]}
65. Rh7+ {[%clk 0:00:07.3]} 65... Kg8 {[%clk 0:00:07.2]} 66. Rb7 {[%clk
0:00:08.2]} 66... Kf8 {[%clk 0:00:07.1]} 67. f3 {[%clk 0:00:08.7]} 67... Ra1
{[%clk 0:00:07.2]} 68. Be6 {[%clk 0:00:09]} 68... Ra5 {[%clk 0:00:07.6]} 69. Bc4
{[%clk 0:00:08.9]} 69... Rh5 {[%clk 0:00:06.1]} 70. Rc7 {[%clk 0:00:09.3]} 70...
Rh1 {[%clk 0:00:06]} 71. Ke3 {[%clk 0:00:10]} 71... Re1+ {[%clk 0:00:06]} 72.
Kf4 {[%clk 0:00:10.4]} 72... Rd1 {[%clk 0:00:06.6]} 73. Ng5 {[%clk 0:00:10.6]}
73... Ra1 {[%clk 0:00:05]} 74. Ne6+ {[%clk 0:00:10.3]} 74... Kg8 {[%clk
0:00:04.4]} 75. Kf5 {[%clk 0:00:06.5]} 75... Kh8 {[%clk 0:00:03.4]} 76. f4
{[%clk 0:00:06.4]} 76... Rg1 {[%clk 0:00:03.1]} 77. Rc8+ {[%clk 0:00:05.6]}
77... Kh7 {[%clk 0:00:03.2]} 78. Ng5+ {[%clk 0:00:05.6]} 1-0

[Event "*** Titled Tuesday Blitz"]
[Site "Chess.com"]
[Date "2020.11.03"]
[Round "11"]
[White "Oligan22"]
[Black "Jeffinho023"]
[Result "1/2-1/2"]
[WhiteElo "2420"]
[BlackElo "2537"]
[TimeControl "180+1"]
[EndTime "12:12:34 PST"]
[Termination "Game drawn - insufficient material"]

1. e4 {[%clk 0:03:00.9]} 1... e6 {[%clk 0:03:00.9]} 2. d4 {[%clk 0:03:00.7]}
2... d5 {[%clk 0:03:00.8]} 3. Nd2 {[%clk 0:03:01.3]} 3... dxe4 {[%clk
0:02:50.9]} 4. Nxe4 {[%clk 0:03:01]} 4... Bd7 {[%clk 0:02:51.8]} 5. Nf3 {[%clk
0:03:00.2]} 5... Bc6 {[%clk 0:02:52.2]} 6. Bd3 {[%clk 0:03:00.7]} 6... Nd7
{[%clk 0:02:52.5]} 7. O-O {[%clk 0:03:00.3]} 7... Ngf6 {[%clk 0:02:53.1]} 8. Bg5
{[%clk 0:03:00.8]} 8... Be7 {[%clk 0:02:53.1]} 9. Ned2 {[%clk 0:03:00.6]} 9...
h6 {[%clk 0:02:52.8]} 10. Bh4 {[%clk 0:02:59.5]} 10... Nd5 {[%clk 0:02:53.2]}
11. Bxe7 {[%clk 0:02:50]} 11... Qxe7 {[%clk 0:02:54.1]} 12. Re1 {[%clk
0:02:42.9]} 12... Nf4 {[%clk 0:02:54.2]} 13. Bf1 {[%clk 0:02:41.3]} 13... Qf6
{[%clk 0:02:54.4]} 14. c4 {[%clk 0:02:21.5]} 14... Qg6 {[%clk 0:02:49.8]} 15. g3
{[%clk 0:02:09.3]} 15... O-O-O {[%clk 0:02:39.8]} 16. Qb1 {[%clk 0:02:03.1]}
16... Qxb1 {[%clk 0:02:33.9]} 17. Raxb1 {[%clk 0:02:04]} 17... Ng6 {[%clk
0:02:32]} 18. b4 {[%clk 0:01:57.9]} 18... Nf6 {[%clk 0:02:32]} 19. b5 {[%clk
0:01:53.4]} 19... Bxf3 {[%clk 0:02:32]} 20. Nxf3 {[%clk 0:01:54.3]} 20... Rhe8
{[%clk 0:02:29.9]} 21. h4 {[%clk 0:01:47.6]} 21... Ne7 {[%clk 0:02:23.8]} 22.
Ne5 {[%clk 0:01:43.5]} 22... Rf8 {[%clk 0:02:23.8]} 23. Rbd1 {[%clk 0:01:40.8]}
23... Nf5 {[%clk 0:02:23.4]} 24. d5 {[%clk 0:01:18.5]} 24... exd5 {[%clk
0:02:08.8]} 25. Bh3 {[%clk 0:01:18.2]} 25... g6 {[%clk 0:02:08.4]} 26. g4 {[%clk
0:01:18.6]} 26... Nxh4 {[%clk 0:02:02.5]} 27. g5+ {[%clk 0:01:19]} 27... Nd7
{[%clk 0:01:52]} 28. Nxd7 {[%clk 0:01:05.6]} 28... Rxd7 {[%clk 0:01:52.9]} 29.
Bxd7+ {[%clk 0:00:59.9]} 29... Kxd7 {[%clk 0:01:52.8]} 30. Rxd5+ {[%clk
0:00:59.9]} 30... Kc8 {[%clk 0:01:53.1]} 31. Re3 {[%clk 0:00:47.1]} 31... Nf5
{[%clk 0:01:49.4]} 32. Red3 {[%clk 0:00:38]} 32... hxg5 {[%clk 0:01:47.6]} 33.
c5 {[%clk 0:00:34.7]} 33... Re8 {[%clk 0:01:35]} 34. Kf1 {[%clk 0:00:34.2]}
34... a6 {[%clk 0:01:26.2]} 35. a4 {[%clk 0:00:33.9]} 35... axb5 {[%clk
0:01:26.4]} 36. axb5 {[%clk 0:00:34.8]} 36... Ng7 {[%clk 0:01:23.4]} 37. Rd7
{[%clk 0:00:33.3]} 37... Rf8 {[%clk 0:01:16.3]} 38. b6 {[%clk 0:00:29.9]} 38...
cxb6 {[%clk 0:01:11.8]} 39. cxb6 {[%clk 0:00:30.8]} 39... Ne6 {[%clk 0:01:10.6]}
40. Re7 {[%clk 0:00:27.8]} 40... Nd8 {[%clk 0:00:50.9]} 41. Rdd7 {[%clk
0:00:25.7]} 41... Kb8 {[%clk 0:00:50.9]} 42. Kg2 {[%clk 0:00:17.1]} 42... f5
{[%clk 0:00:49.4]} 43. f3 {[%clk 0:00:17]} 43... Rg8 {[%clk 0:00:43.7]} 44. Kg3
{[%clk 0:00:17.2]} 44... Rf8 {[%clk 0:00:39.9]} 45. Rh7 {[%clk 0:00:16.8]} 45...
Re8 {[%clk 0:00:34.1]} 46. Rhe7 {[%clk 0:00:16.3]} 46... Rf8 {[%clk 0:00:33.9]}
47. Rg7 {[%clk 0:00:16.1]} 47... g4 {[%clk 0:00:26.6]} 48. fxg4 {[%clk
0:00:15.6]} 48... fxg4 {[%clk 0:00:25.1]} 49. Kxg4 {[%clk 0:00:16.5]} 49... Kc8
{[%clk 0:00:20.5]} 50. Rc7+ {[%clk 0:00:15.9]} 50... Kb8 {[%clk 0:00:20.6]} 51.
Rxg6 {[%clk 0:00:16.2]} 51... Re8 {[%clk 0:00:19.4]} 52. Rgg7 {[%clk 0:00:16.6]}
52... Re6 {[%clk 0:00:16.8]} 53. Rcd7 {[%clk 0:00:16.3]} 53... Re8 {[%clk
0:00:16.1]} 54. Rge7 {[%clk 0:00:15.8]} 54... Rg8+ {[%clk 0:00:15.5]} 55. Kf5
{[%clk 0:00:16.1]} 55... Rf8+ {[%clk 0:00:15.9]} 56. Kg6 {[%clk 0:00:16]} 56...
Nc6 {[%clk 0:00:13.1]} 57. Rxb7+ {[%clk 0:00:15.4]} 57... Ka8 {[%clk 0:00:13.7]}
58. Rec7 {[%clk 0:00:15.3]} 58... Rd8 {[%clk 0:00:11.4]} 59. Rd7 {[%clk
0:00:14.1]} 59... Rc8 {[%clk 0:00:11.4]} 60. Rdc7 {[%clk 0:00:13.2]} 60... Rg8+
{[%clk 0:00:10.8]} 61. Kf5 {[%clk 0:00:13.2]} 61... Rd8 {[%clk 0:00:10.6]} 62.
Ke4 {[%clk 0:00:13.3]} 62... Rd4+ {[%clk 0:00:10.1]} 63. Ke3 {[%clk 0:00:13.5]}
63... Rd8 {[%clk 0:00:11]} 64. Rd7 {[%clk 0:00:13.4]} 64... Re8+ {[%clk
0:00:10.8]} 65. Kf2 {[%clk 0:00:13.7]} 65... Rc8 {[%clk 0:00:10]} 66. Rdc7
{[%clk 0:00:13.8]} 66... Rf8+ {[%clk 0:00:10.2]} 67. Rf7 {[%clk 0:00:14.1]}
67... Re8 {[%clk 0:00:09.8]} 68. Rbc7 {[%clk 0:00:14]} 68... Ne5 {[%clk
0:00:07.4]} 69. Ra7+ {[%clk 0:00:14.2]} 69... Kb8 {[%clk 0:00:07.9]} 70. Rfb7+
{[%clk 0:00:14.8]} 70... Kc8 {[%clk 0:00:08.7]} 71. Ra8+ {[%clk 0:00:15.2]}
71... Kxb7 {[%clk 0:00:08.9]} 72. Rxe8 {[%clk 0:00:16.1]} 72... Nc6 {[%clk
0:00:08.2]} 73. Re6 {[%clk 0:00:16.2]} 73... Kxb6 {[%clk 0:00:09]} 74. Ke3
{[%clk 0:00:16.6]} 74... Kc5 {[%clk 0:00:09.9]} 75. Ke4 {[%clk 0:00:16.6]} 75...
Nb4 {[%clk 0:00:10]} 76. Re5+ {[%clk 0:00:16.3]} 76... Kc6 {[%clk 0:00:10.6]}
77. Re8 {[%clk 0:00:16.9]} 77... Kc5 {[%clk 0:00:10.5]} 78. Rc8+ {[%clk
0:00:17.1]} 78... Nc6 {[%clk 0:00:11.1]} 79. Rc7 {[%clk 0:00:17.3]} 79... Kd6
{[%clk 0:00:11.2]} 80. Rh7 {[%clk 0:00:17.2]} 80... Kc5 {[%clk 0:00:12]} 81.
Rh5+ {[%clk 0:00:17.4]} 81... Kd6 {[%clk 0:00:12.5]} 82. Kd3 {[%clk 0:00:17.5]}
82... Ke6 {[%clk 0:00:11.1]} 83. Kc4 {[%clk 0:00:17.3]} 83... Ne5+ {[%clk
0:00:10.7]} 84. Kd4 {[%clk 0:00:16.7]} 84... Nc6+ {[%clk 0:00:10.2]} 85. Ke4
{[%clk 0:00:16.9]} 85... Kd6 {[%clk 0:00:10.7]} 86. Rh6+ {[%clk 0:00:17.4]}
86... Kc5 {[%clk 0:00:11.2]} 87. Rg6 {[%clk 0:00:18]} 87... Nb4 {[%clk
0:00:10.7]} 88. Re6 {[%clk 0:00:18]} 88... Nc6 {[%clk 0:00:10.4]} 89. Re8 {[%clk
0:00:18.3]} 89... Nb4 {[%clk 0:00:10.6]} 90. Ke3 {[%clk 0:00:18.3]} 90... Nc6
{[%clk 0:00:10.9]} 91. Re4 {[%clk 0:00:18.5]} 91... Kd5 {[%clk 0:00:11.3]} 92.
Kd3 {[%clk 0:00:17.8]} 92... Ne5+ {[%clk 0:00:11.3]} 93. Rxe5+ {[%clk
0:00:17.1]} 93... Kxe5 {[%clk 0:00:11.5]} 1/2-1/2

[Event "*** Titled Tuesday Blitz"]
[Site "Chess.com"]
[Date "2020.11.03"]
[Round "11"]
[White "Anna_ChessMate"]
[Black "XDPS"]
[Result "0-1"]
[WhiteElo "2534"]
[BlackElo "2675"]
[TimeControl "180+1"]
[EndTime "12:12:35 PST"]
[Termination "XDPS won on time"]

1. d4 {[%clk 0:03:00.9]} 1... d5 {[%clk 0:03:00]} 2. c4 {[%clk 0:03:01.3]} 2...
e6 {[%clk 0:02:59.6]} 3. Nf3 {[%clk 0:03:01.7]} 3... a6 {[%clk 0:02:59.2]} 4.
cxd5 {[%clk 0:03:00.8]} 4... exd5 {[%clk 0:02:59.4]} 5. Nc3 {[%clk 0:02:59.7]}
5... Nf6 {[%clk 0:02:59.7]} 6. Bg5 {[%clk 0:03:00.2]} 6... Be6 {[%clk
0:02:59.6]} 7. e3 {[%clk 0:03:00.5]} 7... Nbd7 {[%clk 0:02:59.4]} 8. Bd3 {[%clk
0:03:00.9]} 8... Bd6 {[%clk 0:02:59.6]} 9. O-O {[%clk 0:03:01]} 9... O-O {[%clk
0:02:58.6]} 10. Rc1 {[%clk 0:03:01]} 10... c6 {[%clk 0:02:58.8]} 11. Qc2 {[%clk
0:02:59.9]} 11... Qb8 {[%clk 0:02:56.7]} 12. Rfe1 {[%clk 0:02:54.3]} 12... Bg4
{[%clk 0:02:56.7]} 13. h3 {[%clk 0:02:38.6]} 13... Bh5 {[%clk 0:02:56.5]} 14.
Bxf6 {[%clk 0:02:23.8]} 14... Nxf6 {[%clk 0:02:55.5]} 15. Ng5 {[%clk 0:02:23.4]}
15... Bg6 {[%clk 0:02:31.6]} 16. f4 {[%clk 0:02:11.1]} 16... Bxd3 {[%clk
0:02:27.1]} 17. Qxd3 {[%clk 0:02:12]} 17... Re8 {[%clk 0:02:24.9]} 18. a3 {[%clk
0:02:01.2]} 18... Qd8 {[%clk 0:02:04.7]} 19. Nf3 {[%clk 0:01:57.4]} 19... Re6
{[%clk 0:01:47.4]} 20. Ne5 {[%clk 0:01:52.9]} 20... Bf8 {[%clk 0:01:42.8]} 21.
b4 {[%clk 0:01:51.2]} 21... Ne8 {[%clk 0:01:42.4]} 22. Na4 {[%clk 0:01:41.7]}
22... f6 {[%clk 0:01:35]} 23. Nf3 {[%clk 0:01:35.7]} 23... Nd6 {[%clk
0:01:33.7]} 24. Nc5 {[%clk 0:01:33.9]} 24... Re7 {[%clk 0:01:33.4]} 25. Nd2
{[%clk 0:01:31.4]} 25... a5 {[%clk 0:01:32.5]} 26. Qb3 {[%clk 0:00:56.1]} 26...
Kh8 {[%clk 0:01:28.7]} 27. Ra1 {[%clk 0:00:45.6]} 27... Qe8 {[%clk 0:01:21.7]}
28. Nf1 {[%clk 0:00:29.5]} 28... axb4 {[%clk 0:01:05.9]} 29. axb4 {[%clk
0:00:29]} 29... Nb5 {[%clk 0:01:05]} 30. Rxa8 {[%clk 0:00:27.2]} 30... Qxa8
{[%clk 0:01:04.8]} 31. Qb2 {[%clk 0:00:22.9]} 31... Qe8 {[%clk 0:00:58.6]} 32.
Ra1 {[%clk 0:00:21.8]} 32... Nd6 {[%clk 0:00:52.8]} 33. Qa2 {[%clk 0:00:18.1]}
33... Nf5 {[%clk 0:00:48.2]} 34. Qa8 {[%clk 0:00:13.9]} 34... Nxe3 {[%clk
0:00:37.5]} 35. Qxe8 {[%clk 0:00:13.8]} 35... Rxe8 {[%clk 0:00:38.4]} 36. Re1
{[%clk 0:00:13.5]} 36... b6 {[%clk 0:00:19.9]} 37. Nd3 {[%clk 0:00:13.6]} 37...
Re4 {[%clk 0:00:16.3]} 38. Rxe3 {[%clk 0:00:12.4]} 38... Rxd4 {[%clk 0:00:16.7]}
39. Re8 {[%clk 0:00:08.4]} 39... Kg8 {[%clk 0:00:17]} 40. Nf2 {[%clk 0:00:07.7]}
40... Rxf4 {[%clk 0:00:16.3]} 41. Rc8 {[%clk 0:00:07.9]} 41... Rc4 {[%clk
0:00:15.9]} 42. Ne3 {[%clk 0:00:07.7]} 42... Rc1+ {[%clk 0:00:15.6]} 43. Kh2
{[%clk 0:00:08.2]} 43... Kf7 {[%clk 0:00:16.5]} 44. Nxd5 {[%clk 0:00:06.9]}
44... Bd6+ {[%clk 0:00:14.6]} 45. g3 {[%clk 0:00:06.1]} 45... Rc2 {[%clk
0:00:15.1]} 46. Kg1 {[%clk 0:00:06.3]} 46... Bxg3 {[%clk 0:00:13.1]} 47. Ne4
{[%clk 0:00:06.8]} 47... Be5 {[%clk 0:00:10.1]} 48. Nxb6 {[%clk 0:00:06.2]}
48... Bd4+ {[%clk 0:00:09.7]} 49. Kf1 {[%clk 0:00:05.8]} 49... Bxb6 {[%clk
0:00:10.6]} 50. Ke1 {[%clk 0:00:05.9]} 50... Kg6 {[%clk 0:00:05.9]} 51. Kd1
{[%clk 0:00:05.6]} 51... Rc4 {[%clk 0:00:06]} 52. Nd2 {[%clk 0:00:04.4]} 52...
Rxb4 {[%clk 0:00:06.1]} 53. Rxc6 {[%clk 0:00:05]} 53... Be3 {[%clk 0:00:06.3]}
54. Nf3 {[%clk 0:00:04.6]} 54... Bg5 {[%clk 0:00:05.5]} 55. Ke2 {[%clk
0:00:04.4]} 55... Re4+ {[%clk 0:00:05.1]} 56. Kf1 {[%clk 0:00:04.4]} 56... h5
{[%clk 0:00:04.7]} 57. Ra6 {[%clk 0:00:02]} 57... Rb4 {[%clk 0:00:04.4]} 58. Kg2
{[%clk 0:00:02.8]} 58... Rb2+ {[%clk 0:00:04.4]} 59. Kf1 {[%clk 0:00:02.8]}
59... Bf4 {[%clk 0:00:04.5]} 60. Kg1 {[%clk 0:00:03.1]} 60... Be3+ {[%clk
0:00:03.6]} 61. Kh1 {[%clk 0:00:02.9]} 61... Rf2 {[%clk 0:00:04.2]} 62. Nh4+
{[%clk 0:00:02.9]} 62... Kg5 {[%clk 0:00:04.7]} 63. Ra4 {[%clk 0:00:02.1]} 63...
Rf1+ {[%clk 0:00:04.2]} 64. Kg2 {[%clk 0:00:02]} 64... Rf2+ {[%clk 0:00:03.9]}
65. Kh1 {[%clk 0:00:02.2]} 65... Rf4 {[%clk 0:00:04.3]} 66. Rxf4 {[%clk
0:00:01.1]} 66... Bxf4 {[%clk 0:00:05.2]} 67. Ng2 {[%clk 0:00:01.8]} 67... Bg3
{[%clk 0:00:05.7]} 68. Kg1 {[%clk 0:00:02.3]} 68... Kf5 {[%clk 0:00:06.2]} 69.
Kf1 {[%clk 0:00:02.8]} 69... Ke4 {[%clk 0:00:06.7]} 70. Ke2 {[%clk 0:00:03.3]}
70... g5 {[%clk 0:00:07.3]} 71. Ne3 {[%clk 0:00:02.6]} 71... f5 {[%clk
0:00:07.8]} 72. Nc4 {[%clk 0:00:02.7]} 72... Bf4 {[%clk 0:00:07.9]} 73. Kf2
{[%clk 0:00:02.6]} 73... g4 {[%clk 0:00:08.4]} 74. hxg4 {[%clk 0:00:03.1]} 74...
hxg4 {[%clk 0:00:09.3]} 75. Na3 {[%clk 0:00:03.2]} 75... Be3+ {[%clk 0:00:09.3]}
76. Kg2 {[%clk 0:00:03.2]} 76... f4 {[%clk 0:00:09.1]} 77. Nc2 {[%clk
0:00:03.7]} 77... Bd2 {[%clk 0:00:09.3]} 78. Na3 {[%clk 0:00:02.7]} 78... Be1
{[%clk 0:00:09.5]} 79. Nc2 {[%clk 0:00:02.3]} 79... f3+ {[%clk 0:00:09.2]} 80.
Kf1 {[%clk 0:00:02.9]} 80... Bh4 {[%clk 0:00:09.5]} 81. Na3 {[%clk 0:00:01.6]}
81... g3 {[%clk 0:00:09.7]} 82. Nc4 {[%clk 0:00:02]} 82... Bg5 {[%clk 0:00:10]}
0-1